Cogmind - Beta 11.1 --- EXPLORER MODE // 2022.08.17 @ 23:50:24 Player: REBUS Result: Self-destructed Performance ------------- Evolutions (1) 500 Regions Visited (2) 400 Robots Destroyed (4) 20 Value Destroyed (149) 149 Prototype IDs (0) 0 Alien Tech Used (0) 0 Bonus (200) 200 TOTAL SCORE: 1269 Bonus ------- Pacifist 200 Cogmind --------- Core Integrity 297/400 Matter 74/300 Energy 250/250 System Corruption 2% Temperature Cool (0) Movement Walking (120) Location -9/Materials Parts ------- > --- POWER (1) -------- Ion Engine > --- PROPULSION (4) --- Aluminum Leg Aluminum Leg Aluminum Leg > --- UTILITY (3) ------ Medium Storage Unit Terrain Scanner Utility Shielding > --- WEAPON (2) ------- (None) > --- INVENTORY (10) --- Titanium Leg Titanium Leg Titanium Leg Titanium Leg ECM Suite ECM Suite EM Pulse Gun Assault Rifle Light Assault Rifle Peak State ------------ > --- POWER ------------ Light Ion Engine > --- PROPULSION ------- Titanium Leg Titanium Leg Titanium Leg Titanium Leg > --- UTILITY ---------- Medium Storage Unit Terrain Scanner Utility Shielding > --- WEAPON ----------- Heavy Assault Rifle Heavy Assault Rifle > --- INVENTORY -------- Ion Engine ECM Suite ECM Suite Utility Shielding Field Recycling Unit Field Recycling Unit EM Pulse Gun Assault Rifle Light Assault Rifle Heavy Assault Rifle [Rating: 21] Favorites ----------- Power Light Ion Engine Engine Light Ion Engine Propulsion Aluminum Leg Leg Aluminum Leg Utility Medium Storage Unit Device Terrain Scanner Storage Medium Storage Unit Protection Utility Shielding Weapon Heavy Assault Rifle Ballistic Gun Heavy Assault Rifle Build | -11 -10 -9 ------- Run | Scr Mat Mat Slots Evolved 3 | . 1 2 Power . | . . . Propulsion 2 | . 1 1 Utility 1 | . . 1 Weapon . | . . . Parts Attached 34 | 7 3 24 Power 3 | 1 . 2 Engine 3 | 1 . 2 Core . | . . . Reactor . | . . . Propulsion 24 | 2 1 21 Treads . | . . . Leg 24 | 2 1 21 Wheel . | . . . Hover . | . . . Flight . | . . . Utility 3 | 2 . 1 Device 1 | . . 1 Storage 1 | 1 . . Processor . | . . . Hackware . | . . . Protection 1 | 1 . . Artifact . | . . . Weapon 4 | 2 2 . Energy Gun . | . . . Energy Cannon . | . . . Ballistic Gun 4 | 2 2 . Ballistic Cannon . | . . . Launcher . | . . . Special Weapon . | . . . Impact Weapon . | . . . Slashing Weapon . | . . . Piercing Weapon . | . . . Special Melee Weapon . | . . . Unidentified Prototypes . | . . . Parts Lost 1 | . . 1 Power 1 | . . 1 Propulsion . | . . . Utility . | . . . Weapon . | . . . Highest Loss Streak 1 | . . 1 To Critical Strikes . | . . . Average Slot Usage (%) 94 | . 98 92 Engine 10 | . 12 9 Leg 35 | . 35 35 Device 6 | . . 10 Storage 10 | . 12 10 Protection 10 | . 12 10 Ballistic Gun 19 | . 25 17 Naked Turns . | . . . Heaviest Build 23 | 17 20 23 Greatest Support 68 | 20 30 68 Greatest Overweight (x) 6 | 1 . 6 Average Overweight (x) . | . . . Largest Inventory Capacity 10 | 10 10 10 Average Capacity 9 | 7 10 10 Most Carried 10 | 5 10 10 Average Carried 8 | 3 6 9 Final Capacity 10 | 10 10 10 Final Carried 10 | 5 10 9 Class Distribution -------------------- 100% | Hacker-Mutant Dominant Class ---------------- Hacker-Mutant | -10/Materials Hacker-Mutant | -9/Materials Resources | -11 -10 -9 ----------- Run | Scr Mat Mat Matter Collected 382 | 226 64 92 Remotely . | . . . Salvage Created 166 | . . 166 Parts 9 | . . 9 Haulers Intercepted . | . . . Recyclers Shooed . | . . . Parts Field Recycled . | . . . Retrieved Matter . | . . . Parts Self-Destructed . | . . . Prevented . | . . . Kills | -11 -10 -9 ------- Run | Scr Mat Mat Combat Hostiles Destroyed 4 | . . 4 Guns 4 | . . 4 Classes Destroyed 1 | . . 1 Grunt 4 | . . 4 Best Kill Streak 4 | . . 4 Combat Bots Only 4 | . . 4 Max Kills in Single Turn 1 | . . 1 Gunslinging . | . . . Exploded . | . . . Melee . | . . . Uniques/NPCs Destroyed . | . . . Combat | -11 -10 -9 -------- Run | Scr Mat Mat Damage Taken 482 | . 35 447 Core 103 | . . 103 Absorbed by Shields . | . . . Redirected to Shielding 12 | . 2 10 Core Remaining (%) 100 | 100 100 . Volleys Fired 11 | . . 11 Largest 2 | . . 2 Hottest 46 | . . 46 Shots Fired 22 | . . 22 Gun 22 | . . 22 Cannon . | . . . Launcher . | . . . Special . | . . . Kinetic 22 | . . 22 Thermal . | . . . Explosive . | . . . Electromagnetic . | . . . Robot Hit Streak 12 | . . 12 Robot Miss Streak 1 | . . 1 Penetration Max . | . . . Secondary Targets . | . . . Shots Hit Robots 20 | . . 20 Core Hits 7 | . . 7 Critical Kills . | . . . Critical Parts Destroyed . | . . . Critical Strikes . | . . . Melee Attacks . | . . . Impact . | . . . Slashing . | . . . Piercing . | . . . Sneak Attacks . | . . . Combat Hostiles . | . . . Follow-up Attacks . | . . . Damage Inflicted 323 | 1 . 322 Guns 314 | . . 314 Cannons . | . . . Explosions . | . . . Melee . | . . . Ramming 9 | 1 . 8 Kinetic 314 | . . 314 Thermal . | . . . Explosive . | . . . Electromagnetic . | . . . Impact . | . . . Slashing . | . . . Piercing . | . . . Highest Corruption 2 | . . 2 Average Corruption 1 | . . 1 Corruption Purged . | . . . Corruption Blocked . | . . . Effects 5 | . . 5 Matter Fused 1 | . . 1 Energy Discharges 1 | . . 1 Data Loss (major) 1 | . . 1 Alerts 2 | . . 2 Overload Shots . | . . . Overflow Damage . | . . . Projectiles . | . . . Explosions . | . . . Melee . | . . . Knockbacks . | . . . Impact . | . . . Kinetic . | . . . Secondary . | . . . Self-Inflicted Damage . | . . . Shots . | . . . Rammed . | . . . Targets Rammed 3 | 1 . 2 Kicked 3 | 1 . 2 Crushed . | . . . Highest Temperature 7 | . . 7 Average Temperature 3 | . . 3 Received Heat Transfer 288 | . 30 258 Siege Activations . | . . . Robots Corrupted . | . . . Combat Hostiles . | . . . Parts Fried . | . . . Impact Corruptions . | . . . Robots Melted . | . . . Combat Hostiles . | . . . Parts Melted . | . . . Heat Transferred . | . . . Parts Sabotaged . | . . . Parts Stolen . | . . . Parts Stripped . | . . . Power Chain Reactions . | . . . Missiles Intercepted . | . . . Alert | -11 -10 -9 ------- Run | Scr Mat Mat Peak Influence 137 | . 10 137 Initial 2 | . . 2 Average 47 | . 2 78 Maximum Alert Level . | . . . Low Security (%) 100 | 100 100 100 Level 1 . | . . . Level 2 . | . . . Level 3 . | . . . Level 4 . | . . . Level 5 . | . . . High Security . | . . . Max Security . | . . . Squads Dispatched 3 | . 1 2 Investigation 1 | . 1 . Extermination . | . . . Reinforcement 2 | . . 2 Assault . | . . . Garrison . | . . . Intercept . | . . . Searches Triggered . | . . . Construction Impeded . | . . . Haulers Reinforced . | . . . Active Scanning Responses . | . . . Cargo Convoy Interrupts . | . . . Stealth | -11 -10 -9 --------- Run | Scr Mat Mat Distress Signals . | . . . Communications Jammed . | . . . Distress Signals . | . . . Times Spotted 16 | . 1 15 Peak Tracking Total 8 | . 1 8 Tactical Retreats 1 | . . 1 Traps | -11 -10 -9 ------- Run | Scr Mat Mat Traps Triggered 6 | . . 6 Indirectly . | . . . Trap Hack Attempts . | . . . Triggered . | . . . Disarmed . | . . . Reprogrammed . | . . . Reused . | . . . Traps Extracted . | . . . Installed . | . . . Triggered . | . . . Machines | -11 -10 -9 ---------- Run | Scr Mat Mat Machines Disabled . | . . . Max in Single Turn . | . . . Machines Sabotaged . | . . . Garrisons Compromised . | . . . Overloaded Fab Kills . | . . . Hacking | -11 -10 -9 --------- Run | Scr Mat Mat Machines Accessed 2 | . 2 . Terminals 2 | . 2 . Fabricators . | . . . Repair Stations . | . . . Recycling Units . | . . . Scanalyzers . | . . . Garrison Access . | . . . Total Hacks 5 | . 5 . Successful 4 | . 4 . Failed 1 | . 1 . Catastrophic . | . . . Database Lockouts . | . . . Manual 6 | . 6 . Terminals 5 | . 5 . Fabricators . | . . . Repair Stations . | . . . Recycling Units . | . . . Scanalyzers . | . . . Garrison Access . | . . . Terminal Hacks 4 | . 4 . Record 2 | . 2 . Robot Analysis 1 | . 1 . Locate Traps 1 | . 1 . Fabricator Hacks . | . . . Repair Station Hacks . | . . . Recycling Unit Hacks . | . . . Scanalyzer . | . . . Garrison Access Hacks . | . . . Unauthorized Hacks . | . . . Terminals . | . . . Fabricators . | . . . Repair Stations . | . . . Recycling Units . | . . . Scanalyzers . | . . . Garrison Access . | . . . Data Cores Recovered . | . . . Used . | . . . Hacking Detections 2 | . 2 . Full Trace Events 2 | . 2 . Feedback Events . | . . . Feedback Blocked . | . . . Robot Schematics Acquired . | . . . Robots Built . | . . . Authchips . | . . . Time . | . . . Total Robot Build Rating . | . . . Part Schematics Acquired . | . . . Parts Built . | . . . Authchips . | . . . Time . | . . . Total Part Build Rating . | . . . Parts Repaired . | . . . Time . | . . . Parts Recycled . | . . . Recycled Matter . | . . . Retrieved Matter . | . . . Retrieved Components . | . . . Parts Scanalyzed . | . . . Part Schematics Acquired . | . . . Parts Damaged . | . . . Bothacking | -11 -10 -9 ------------ Run | Scr Mat Mat Used RIF Installer . | . . . Robots Hacked . | . . . Non-combat . | . . . Combat . | . . . Robot Hacks Applied . | . . . Relay Couplers Released . | . . . Fabnet Peak Effective % . | . . . Robots Rewired . | . . . Allies Hacked . | . . . Hacks Repelled . | . . . Allies | -11 -10 -9 -------- Run | Scr Mat Mat Total Allies . | . . . Largest Group . | . . . Highest-Rated Group . | . . . Highest-Rated Ally . | . . . Total Orders . | . . . Ally Attacks . | . . . Total Damage . | . . . Kills . | . . . Allies Corrupted . | . . . Allies Melted . | . . . Intel | -11 -10 -9 ------- Run | Scr Mat Mat Robot Analysis Total 1 | . 1 . Derelict Logs Recovered . | . . . Drone Launches . | . . . Drone Recoveries . | . . . Exploration | -11 -10 -9 ------------- Run | Scr Mat Mat Turns Passed 797 | 102 218 477 Spaces Moved 571 | 87 176 308 Core 36 | 29 . 7 Treads . | . . . Legs 535 | 58 176 301 Wheels . | . . . Hover . | . . . Flight . | . . . Fastest Speed 50 | 50 120 120 Average Speed 121 | 98 120 128 Slowest Speed 350 | 120 120 350 Overloaded Moves . | . . . Propulsion Burnouts . | . . . Robots Hopped . | . . . Cave-ins Triggered . | . . . Exploration Rate (%) 22 | 4 32 30 Regions Visited 2 Branch Regions . Pre-discovered Areas . | . . . Known Exits Taken 2 | 1 1 . Unknown Exits Taken . | . . . Scrap Searched . | . . . Spaces Dug . | . . . Terrain Destroyed . | . . . Melee . | . . . Projectile . | . . . AOE . | . . . Terrain Rammed . | . . . Walls Destroyed . | . . . Machines Disabled . | . . . Actions | -11 -10 -9 --------- Run | Scr Mat Mat Total 651 | 99 181 371 Wait . | . . . Move 569 | 86 175 308 Hop . | . . . Pick Up 13 | 5 3 5 Fast Attach 21 | 7 1 13 Attach 2 | . . 2 Detach . | . . . Swap 11 | . 2 9 Drop 21 | . . 21 Fire 11 | . . 11 Melee . | . . . Ram . | . . . Kick 3 | 1 . 2 Crush . | . . . Escape Stasis . | . . . Rewire . | . . . Trap . | . . . Miscellaneous . | . . . Route ------- -11/Scrapyard -10/Materials (discovered 2 exits: *Mat / *Min) -9/Materials (discovered 1 exit: *Min) History --------- Turn | Location | Event 5 | -11/Scrapyard | Identified exit to Materials 5 | -11/Scrapyard | Discovered exit to Materials (range 15) 103 | -11/Scrapyard | Entered Materials 103 | -10/Materials | Evolved 1 slot: Propulsion x1 217 | -10/Materials | Identified exit to Mines 217 | -10/Materials | Discovered exit to Mines (range 15) 308 | -10/Materials | Build established: Hacker-Mutant 316 | -10/Materials | Identified exit to Materials 316 | -10/Materials | Discovered exit to Materials (range 3) 321 | -10/Materials | Entered another Materials area 321 | -9/Materials | Evolved 2 slots: Propulsion x1, Utility x1 758 | -9/Materials | Identified exit to Mines 758 | -9/Materials | Discovered exit to Mines (range 7) 798 | -9/Materials | Self-destructed Last Messages --------------- 00730_ Massive razor-sharp blades shoot up from within the floor. 00730_ Hvy. Assault Rifle severed. 00730_ Aluminum Leg severed. 00731_ Triggered Blade Trap. 00731_ Massive razor-sharp blades shoot up from within the floor. 00731_ Ion Engine severed. 00731_ Aluminum Leg severed. 00732_ Acquired Aluminum Leg. 00733_ U-05 Engineer lays Concrete. 00734_ Triggered Blade Trap. 00734_ Massive razor-sharp blades shoot up from within the floor. 00734_ Aluminum Leg severed. 00734_ Hvy. Assault Rifle severed. 00735_ U-05 Engineer lays Concrete. 00739_ Acquired Ion Engine. 00741_ System corrupted: IFF burst signal emitted. 00746_ Acquired Aluminum Leg. 00758_ EXIT=FOUND: MINES 00771_ System corrupted: IFF burst signal emitted. 00789_ System corrupted: Substantial component data lost. Map ----- +----------------------------------------------------+ | | | | | | | ???????????????????????#?????????????????????????? | | ?????????????????????????????????????????????????? | | ?????????????????##??????????????????????????????? | | ?????????######## #########??????????????????????? | | ?????????# # #???????????????????????? | | ?????????# # #???????????????????????? | | ?? ?????# # """ ##??????????????????????? | | ???? ????# /// # """ #???????????????????????? | | ?????????# //[> # """ #????#??????????????????? | | ????????# //[ # #?????#?????????????????? | | ?? ?????# ###+###########????????????????? | | ?????????# + + #????????????????? | | ?????????# # # #????????????????? | | ####+######+####### # #????????????????? | | ^ # """ """ #????????????????? | | [= + """ """ #????????????????? | | ^ [ # """ """ #????????????????? | | ####+####### ######## #????????????????? | | ?? ??????# #??????# = #????????????????? | | ?""" ??????# #??????###+#######????????????????? | | """ ??????# +????????# #??????????????????????? | | """??????#? #????????# #?? ???????????????????? | | """???? ??? #????????#@#??"???????????????????? | | ?? ???????? #????????# #??????????????????????? | | ?? ????????## #????????#s#??????????????????????? | | ?? ??????????# #????????#Y#??????????????????????? | | ?????????????? #???? ???# #??????????????????????? | | ????????????#? #????????#s#??????????????????????? | | ???????????????#??????#?# #??????????????????????? | | ???????????????????????? ??????????????????????? | | ???????????????????????? ??????????????????????? | | ???????????????????????? ??????????????????????? | | ????????????????????????u ??????????????????????? | | ???????????????????????? ??????????????????????? | | ???????????????????????? Y ??????????????????????? | | ???????????????????????? ??????????????????????? | | ???????????????????????? ??????????????????????? | | ???????????????????????? ??????????????????????? | | ?????????????????????????????????????????????????? | | ?????????????????????????????????????????????????? | | ?????????????????????????????????????????????????? | | ?????????????????????????????????????????????????? | | ?????????????????????????????????????????????????? | | ?????????????????????????????????????????????????? | | ?????????????????????????????????????????????????? | | ?????????????????????????????????????????????????? | | ?????????????????????????????????????????????????? | +----------------------------------------------------+ Best States ------------- Heat Dissipation 28 Energy Generation 10 Energy Capacity 250 Matter Stores 300 Matter Capacity 300 Sight Range 16 Terrain Scan Range 14 Terrain Scan Density 10 Resistance: KI 35 Resistance: TH 35 Resistance: EX 35 Resistance: EM 35 Resistance: I 35 Resistance: S 35 Resistance: P 35 Utility Shielding 33 Evasion (%) 55 Offensive Hacking 20 Item Schematics ----------------- None Robot Schematics ------------------ None Fabricated ------------ Nothing Alien Tech Used ----------------- None Achievements -------------- None Challenges ------------ None Game ------ Seed ContainmentTerrabombChip Manual? 0 Play Time 00:11:56 Cumulative 29.3 hours Start 2022.08.17 @ 23:33:14 End 2022.08.17 @ 23:50:24 Sessions 1 Manual Loads 0 Difficulty Explorer Special Mode None Game No. 41 Rogue 0 Adventurer 0 Explorer 41 Win Type - Total 0 Types 0/0/0/0/0/0/0/0/0 Lore% 6 Gallery% 25 Achievement% 19 Wizard Run 0 Options --------- ASCII 0 Keyboard 1 Movement Arrows Keybinds 0 Fullscreen 1 Font 18/Smallcaps Map View 76x50 Tactical HUD 1 Map Filters NONE Filters NONE Steam 1 RUN: 791dfd22-c0b3-4ad1-aabf-6ea3dfe19586